[Event "Titled Tuesday Blitz February 15 Early 2022"]
[White "Vaishali, Rameshbabu"]
[Black "Adury, Anant"]
[WhiteFideId "5091756"]
[BlackFideId "30964687"]
[WhiteElo "2343"]
[BlackElo "2321"]
[Result "1-0"]
[Round "01"]
[TimeControl "180+1"]
[Date "2022.02.15"]
[WhiteClock "0:00:11"]
[BlackClock "0:00:33"]

1. d4 {[%clk 0:03:00]}  Nf6 {[%clk 0:03:00]} 2. c4 {[%clk 0:02:59]}  e6 {[%clk 0:03:00]} 3. Nc3 {[%clk 0:02:59]}  d5 {[%clk 0:03:01]} 4. Nf3 {[%clk 0:02:58]}  Be7 {[%clk 0:03:01]} 5. Bf4 {[%clk 0:02:58]}  O-O {[%clk 0:02:59]} 6. a3 {[%clk 0:02:58]}  b6 {[%clk 0:02:56]} 7. Qc2 {[%clk 0:02:56]}  c5 {[%clk 0:02:51]} 8. Rd1 {[%clk 0:02:50]}  Nc6 {[%clk 0:02:43]} 9. e3 {[%clk 0:02:43]}  cxd4 {[%clk 0:02:41]} 10. Nxd4 {[%clk 0:02:40]}  Nxd4 {[%clk 0:02:40]} 11. Rxd4 {[%clk 0:02:41]}  Bb7 {[%clk 0:02:40]} 12. Be2 {[%clk 0:02:37]}  Bd6 {[%clk 0:02:31]} 13. Bxd6 {[%clk 0:02:30]}  Qxd6 {[%clk 0:02:32]} 14. cxd5 {[%clk 0:02:28]}  Nxd5 {[%clk 0:02:33]} 15. O-O {[%clk 0:02:19]}  Qc7 {[%clk 0:02:29]} 16. Rc4 {[%clk 0:02:03]}  Qe5 {[%clk 0:02:25]} 17. Rd1 {[%clk 0:01:50]}  Rac8 {[%clk 0:02:21]} 18. Nxd5 {[%clk 0:01:47]}  exd5 {[%clk 0:02:06]} 19. Rxc8 {[%clk 0:01:46]}  Rxc8 {[%clk 0:02:06]} 20. Qb3 {[%clk 0:01:44]}  g6 {[%clk 0:01:58]} 21. Bf3 {[%clk 0:01:43]}  Kg7 {[%clk 0:01:52]} 22. h3 {[%clk 0:01:41]}  h5 {[%clk 0:01:45]} 23. g3 {[%clk 0:01:29]}  Rc5 {[%clk 0:01:43]} 24. Rd4 {[%clk 0:01:24]}  Qc7 {[%clk 0:01:38]} 25. Kg2 {[%clk 0:01:24]}  Qe5 {[%clk 0:01:36]} 26. Qd1 {[%clk 0:01:22]}  Bc6 {[%clk 0:01:35]} 27. Qd2 {[%clk 0:01:20]}  Qe6 {[%clk 0:01:25]} 28. b4 {[%clk 0:00:47]}  Rc4 {[%clk 0:01:22]} 29. Rxd5 {[%clk 0:00:41]}  b5 {[%clk 0:01:01]} 30. Rd4 {[%clk 0:00:21]}  Bxf3+ {[%clk 0:00:37]} 31. Kxf3 {[%clk 0:00:22]}  Qc6+ {[%clk 0:00:37]} 32. Rd5 {[%clk 0:00:21]}  Rc2 {[%clk 0:00:35]} 33. Qd4+ {[%clk 0:00:20]}  Kh7 {[%clk 0:00:35]} 34. Kg2 {[%clk 0:00:20]}  Rc4 {[%clk 0:00:35]} 35. Qe5 {[%clk 0:00:16]}  f6 {[%clk 0:00:33]} 36. Qe7+ {[%clk 0:00:13]}  Kh6 {[%clk 0:00:33]} 37. Qf8+ {[%clk 0:00:11]} 1-0


[Site "https://www.chess.com"]

[Event "Titled Tuesday Blitz February 15 Early 2022"]
[White "Valle Maytin, Luis Enrique"]
[Black "Petesch, Gabriel"]
[WhiteFideId "3503666"]
[BlackFideId "2032465"]
[WhiteElo "1997"]
[BlackElo "2374"]
[Result "0-1"]
[Round "01"]
[TimeControl "180+1"]
[Date "2022.02.15"]
[WhiteClock "0:00:04"]
[BlackClock "0:00:05"]

1. e4 {[%clk 0:02:56]}  e6 {[%clk 0:02:45]} 2. d4 {[%clk 0:02:54]}  d5 {[%clk 0:02:33]} 3. Bd3 {[%clk 0:02:54]}  dxe4 {[%clk 0:02:29]} 4. Bxe4 {[%clk 0:02:55]}  Nf6 {[%clk 0:02:27]} 5. Bf3 {[%clk 0:02:52]}  c5 {[%clk 0:02:25]} 6. c3 {[%clk 0:02:42]}  cxd4 {[%clk 0:02:22]} 7. cxd4 {[%clk 0:02:43]}  Nc6 {[%clk 0:02:22]} 8. Ne2 {[%clk 0:02:37]}  Bb4+ {[%clk 0:02:19]} 9. Nbc3 {[%clk 0:02:37]}  O-O {[%clk 0:02:12]} 10. O-O {[%clk 0:02:36]}  Bd7 {[%clk 0:02:11]} 11. a3 {[%clk 0:02:32]}  Bd6 {[%clk 0:02:06]} 12. Bg5 {[%clk 0:02:26]}  h6 {[%clk 0:01:57]} 13. Bxf6 {[%clk 0:02:26]}  Qxf6 {[%clk 0:01:57]} 14. Ne4 {[%clk 0:02:26]}  Qe7 {[%clk 0:01:57]} 15. Nxd6 {[%clk 0:02:27]}  Qxd6 {[%clk 0:01:57]} 16. d5 {[%clk 0:02:27]}  Ne5 {[%clk 0:01:54]} 17. Nf4 {[%clk 0:02:06]}  Nxf3+ {[%clk 0:01:34]} 18. Qxf3 {[%clk 0:02:05]}  e5 {[%clk 0:01:35]} 19. Ne2 {[%clk 0:02:03]}  Bb5 {[%clk 0:01:18]} 20. Rfd1 {[%clk 0:02:02]}  e4 {[%clk 0:01:12]} 21. Qe3 {[%clk 0:01:59]}  f5 {[%clk 0:01:08]} 22. Nc3 {[%clk 0:01:54]}  Bd7 {[%clk 0:01:07]} 23. Ne2 {[%clk 0:01:42]}  b6 {[%clk 0:01:06]} 24. Rd2 {[%clk 0:01:38]}  Rae8 {[%clk 0:00:59]} 25. Rad1 {[%clk 0:01:34]}  f4 {[%clk 0:00:58]} 26. Qb3 {[%clk 0:01:19]}  e3 {[%clk 0:00:34]} 27. Rc2 {[%clk 0:01:11]}  f3 {[%clk 0:00:24]} 28. Ng3 {[%clk 0:00:55]}  Qf4 {[%clk 0:00:07]} 29. fxe3 {[%clk 0:00:46]}  Rxe3 {[%clk 0:00:05]} 30. Qc4 {[%clk 0:00:36]}  Qf7 {[%clk 0:00:03]} 31. Rf2 {[%clk 0:00:27]}  Ree8 {[%clk 0:00:02]} 32. Rxf3 {[%clk 0:00:26]}  Qg6 {[%clk 0:00:02]} 33. d6+ {[%clk 0:00:24]}  Kh7 {[%clk 0:00:02]} 34. Rxf8 {[%clk 0:00:20]}  Rxf8 {[%clk 0:00:03]} 35. Qc7 {[%clk 0:00:20]}  Rf7 {[%clk 0:00:03]} 36. Re1 {[%clk 0:00:19]}  Qf6 {[%clk 0:00:02]} 37. Rf1 {[%clk 0:00:17]}  Qg6 {[%clk 0:00:02]} 38. Qc1 {[%clk 0:00:09]}  Rxf1+ {[%clk 0:00:01]} 39. Qxf1 {[%clk 0:00:08]}  Qxd6 {[%clk 0:00:02]} 40. Qb1+ {[%clk 0:00:08]}  g6 {[%clk 0:00:03]} 41. Qc2 {[%clk 0:00:08]}  Kg7 {[%clk 0:00:03]} 42. Qc3+ {[%clk 0:00:09]}  Qf6 {[%clk 0:00:03]} 43. Ne4 {[%clk 0:00:08]}  Qxc3 {[%clk 0:00:02]} 44. Nxc3 {[%clk 0:00:08]}  Kf6 {[%clk 0:00:03]} 45. Nd5+ {[%clk 0:00:08]}  Ke5 {[%clk 0:00:03]} 46. Nc3 {[%clk 0:00:07]}  Kd4 {[%clk 0:00:03]} 47. Kf2 {[%clk 0:00:07]}  Kd3 {[%clk 0:00:03]} 48. Ke1 {[%clk 0:00:07]}  Kc2 {[%clk 0:00:04]} 49. Nd1 {[%clk 0:00:06]}  Bf5 {[%clk 0:00:02]} 50. g4 {[%clk 0:00:05]}  Be6 {[%clk 0:00:02]} 51. b4 {[%clk 0:00:04]}  h5 {[%clk 0:00:02]} 52. gxh5 {[%clk 0:00:04]}  gxh5 {[%clk 0:00:03]} 53. h4 {[%clk 0:00:04]}  Kb3 {[%clk 0:00:03]} 54. Kd2 {[%clk 0:00:03]}  Kxa3 {[%clk 0:00:03]} 55. Nf2 {[%clk 0:00:01]}  Kxb4 {[%clk 0:00:03]} 56. Nd3+ {[%clk 0:00:02]}  Kc4 {[%clk 0:00:03]} 57. Nf4 {[%clk 0:00:03]}  Bg4 {[%clk 0:00:02]} 58. Ng6 {[%clk 0:00:03]}  a5 {[%clk 0:00:03]} 59. Kc2 {[%clk 0:00:03]}  Be2 {[%clk 0:00:03]} 60. Ne5+ {[%clk 0:00:02]}  Kd5 {[%clk 0:00:03]} 61. Nd7 {[%clk 0:00:02]}  b5 {[%clk 0:00:03]} 62. Nf6+ {[%clk 0:00:01]}  Ke6 {[%clk 0:00:03]} 63. Nh7 {[%clk 0:00:02]}  Kf5 {[%clk 0:00:03]} 64. Ng5 {[%clk 0:00:03]}  Kg4 {[%clk 0:00:03]} 65. Ne6 {[%clk 0:00:03]}  Kxh4 {[%clk 0:00:03]} 66. Nd4 {[%clk 0:00:03]}  Bc4 {[%clk 0:00:03]} 67. Nc6 {[%clk 0:00:04]}  Kg3 {[%clk 0:00:04]} 68. Nxa5 {[%clk 0:00:04]}  h4 {[%clk 0:00:04]} 69. Nc6 {[%clk 0:00:04]}  h3 {[%clk 0:00:05]} 70. Ne5 {[%clk 0:00:04]}  h2 {[%clk 0:00:05]} 71. Nf3 {[%clk 0:00:04]}  Kxf3 {[%clk 0:00:05]} 0-1


[Site "https://www.chess.com"]

[Event "Titled Tuesday Blitz February 15 Early 2022"]
[White "Vokhidov, Shamsiddin"]
[Black "Reprintsev, Alexander"]
[WhiteFideId "14204223"]
[BlackFideId "14100541"]
[WhiteElo "2611"]
[BlackElo "2126"]
[Result "1-0"]
[Round "01"]
[TimeControl "180+1"]
[Date "2022.02.15"]
[WhiteClock "0:01:51"]
[BlackClock "0:02:03"]

1. e4 {[%clk 0:03:00]}  d5 {[%clk 0:02:55]} 2. exd5 {[%clk 0:03:00]}  Qxd5 {[%clk 0:02:54]} 3. Nc3 {[%clk 0:03:00]}  Qa5 {[%clk 0:02:53]} 4. d4 {[%clk 0:03:01]}  Nf6 {[%clk 0:02:53]} 5. Nf3 {[%clk 0:03:00]}  Nc6 {[%clk 0:02:53]} 6. Bb5 {[%clk 0:03:00]}  Ne4 {[%clk 0:02:52]} 7. Rb1 {[%clk 0:02:45]}  Nxc3 {[%clk 0:02:51]} 8. bxc3 {[%clk 0:02:46]}  a6 {[%clk 0:02:52]} 9. Bxc6+ {[%clk 0:02:44]}  bxc6 {[%clk 0:02:53]} 10. O-O {[%clk 0:02:44]}  Bg4 {[%clk 0:02:52]} 11. h3 {[%clk 0:02:44]}  Bh5 {[%clk 0:02:52]} 12. Qd3 {[%clk 0:02:40]}  Bg6 {[%clk 0:02:45]} 13. Qc4 {[%clk 0:02:39]}  Qd5 {[%clk 0:02:45]} 14. Qxd5 {[%clk 0:02:39]}  cxd5 {[%clk 0:02:45]} 15. Bf4 {[%clk 0:02:38]}  e6 {[%clk 0:02:44]} 16. Bxc7 {[%clk 0:02:34]}  Bxc2 {[%clk 0:02:43]} 17. Rb7 {[%clk 0:02:29]}  Ba3 {[%clk 0:02:39]} 18. Ne5 {[%clk 0:02:15]}  O-O {[%clk 0:02:38]} 19. Nd7 {[%clk 0:02:15]}  Rfe8 {[%clk 0:02:35]} 20. Nb6 {[%clk 0:02:15]}  Rad8 {[%clk 0:02:22]} 21. Bxd8 {[%clk 0:02:12]}  Rxd8 {[%clk 0:02:23]} 22. Re1 {[%clk 0:02:08]}  h6 {[%clk 0:02:14]} 23. Re2 {[%clk 0:02:08]}  Bd3 {[%clk 0:02:14]} 24. Re3 {[%clk 0:02:08]}  Bb5 {[%clk 0:02:12]} 25. c4 {[%clk 0:02:06]}  Bc1 {[%clk 0:02:03]} 26. cxb5 {[%clk 0:02:04]}  Bxe3 {[%clk 0:02:03]} 27. bxa6 {[%clk 0:01:51]}  Bxd4 {[%clk 0:02:03]} 28. a7 {[%clk 0:01:51]} 1-0


[Site "https://www.chess.com"]

[Event "Titled Tuesday Blitz February 15 Early 2022"]
[White "Wartiovaara, Oliver"]
[Black "Omariev, Maksim"]
[WhiteFideId "513024"]
[BlackFideId "4193423"]
[WhiteElo "1971"]
[BlackElo "2534"]
[Result "1-0"]
[Round "01"]
[TimeControl "180+1"]
[Date "2022.02.15"]
[WhiteClock "0:00:04"]
[BlackClock "0:00:14"]

1. e4 {[%clk 0:03:00]}  c5 {[%clk 0:02:36]} 2. Nf3 {[%clk 0:02:58]}  d6 {[%clk 0:02:36]} 3. d3 {[%clk 0:02:58]}  Nc6 {[%clk 0:02:36]} 4. Be2 {[%clk 0:02:57]}  g6 {[%clk 0:02:36]} 5. O-O {[%clk 0:02:57]}  Bg7 {[%clk 0:02:37]} 6. h3 {[%clk 0:02:57]}  e5 {[%clk 0:02:37]} 7. c3 {[%clk 0:02:55]}  Nge7 {[%clk 0:02:37]} 8. Be3 {[%clk 0:02:53]}  O-O {[%clk 0:02:37]} 9. a3 {[%clk 0:02:52]}  f5 {[%clk 0:02:38]} 10. b4 {[%clk 0:02:51]}  f4 {[%clk 0:02:35]} 11. Bc1 {[%clk 0:02:50]}  h6 {[%clk 0:02:33]} 12. Bb2 {[%clk 0:02:39]}  g5 {[%clk 0:02:33]} 13. d4 {[%clk 0:02:40]}  Ng6 {[%clk 0:02:24]} 14. dxc5 {[%clk 0:02:28]}  dxc5 {[%clk 0:02:24]} 15. Qxd8 {[%clk 0:02:15]}  Rxd8 {[%clk 0:02:25]} 16. b5 {[%clk 0:02:15]}  Na5 {[%clk 0:02:16]} 17. c4 {[%clk 0:02:11]}  Be6 {[%clk 0:02:13]} 18. Nfd2 {[%clk 0:02:10]}  b6 {[%clk 0:01:34]} 19. Rd1 {[%clk 0:02:06]}  Nxc4 {[%clk 0:01:26]} 20. Nxc4 {[%clk 0:01:53]}  Rxd1+ {[%clk 0:01:25]} 21. Bxd1 {[%clk 0:01:54]}  Bxc4 {[%clk 0:01:26]} 22. Nc3 {[%clk 0:01:54]}  Rd8 {[%clk 0:01:12]} 23. a4 {[%clk 0:01:25]}  Rd2 {[%clk 0:01:00]} 24. Bc1 {[%clk 0:01:24]}  Rd3 {[%clk 0:00:55]} 25. Bb2 {[%clk 0:01:24]}  Nf8 {[%clk 0:00:43]} 26. a5 {[%clk 0:01:22]}  Bf6 {[%clk 0:00:30]} 27. axb6 {[%clk 0:01:19]}  axb6 {[%clk 0:00:31]} 28. Nd5 {[%clk 0:01:17]}  Bxd5 {[%clk 0:00:23]} 29. exd5 {[%clk 0:01:17]}  Kf7 {[%clk 0:00:14]} 30. Ra7+ {[%clk 0:01:14]}  Ke8 {[%clk 0:00:12]} 31. Bh5+ {[%clk 0:01:11]}  Kd8 {[%clk 0:00:10]} 32. Ra8+ {[%clk 0:01:09]}  Ke7 {[%clk 0:00:10]} 33. Re8+ {[%clk 0:01:08]}  Kd6 {[%clk 0:00:07]} 34. Rxf8 {[%clk 0:01:09]}  Be7 {[%clk 0:00:07]} 35. Rb8 {[%clk 0:00:55]}  Kxd5 {[%clk 0:00:07]} 36. Rxb6 {[%clk 0:00:51]}  c4 {[%clk 0:00:07]} 37. Rc6 {[%clk 0:00:43]}  Rb3 {[%clk 0:00:02]} 38. Bf7+ {[%clk 0:00:25]}  Ke4 {[%clk 0:00:02]} 39. Rxc4+ {[%clk 0:00:22]}  Kd3 {[%clk 0:00:03]} 40. Rd4+ {[%clk 0:00:20]}  exd4 {[%clk 0:00:03]} 41. Bxb3 {[%clk 0:00:21]}  Bc5 {[%clk 0:00:03]} 42. Kf1 {[%clk 0:00:19]}  Kd2 {[%clk 0:00:03]} 43. g3 {[%clk 0:00:18]}  d3 {[%clk 0:00:02]} 44. gxf4 {[%clk 0:00:17]}  gxf4 {[%clk 0:00:03]} 45. Bd5 {[%clk 0:00:17]}  Kc2 {[%clk 0:00:02]} 46. Be5 {[%clk 0:00:16]}  d2 {[%clk 0:00:02]} 47. Be4+ {[%clk 0:00:16]}  Kc1 {[%clk 0:00:02]} 48. Bxf4 {[%clk 0:00:15]}  Kd1 {[%clk 0:00:02]} 49. Bf3+ {[%clk 0:00:14]}  Kc2 {[%clk 0:00:03]} 50. Be4+ {[%clk 0:00:13]}  Kc3 {[%clk 0:00:02]} 51. Ke2 {[%clk 0:00:12]}  Kb4 {[%clk 0:00:02]} 52. Bd3 {[%clk 0:00:12]}  d1=Q+ {[%clk 0:00:02]} 53. Kxd1 {[%clk 0:00:10]}  Bxf2 {[%clk 0:00:02]} 54. Ke2 {[%clk 0:00:10]}  Bb6 {[%clk 0:00:03]} 55. Kf3 {[%clk 0:00:09]}  Kc3 {[%clk 0:00:03]} 56. Bf5 {[%clk 0:00:09]}  h5 {[%clk 0:00:03]} 57. Bg6 {[%clk 0:00:07]}  Kc4 {[%clk 0:00:03]} 58. Be8 {[%clk 0:00:07]}  Bd8 {[%clk 0:00:02]} 59. Be3 {[%clk 0:00:07]}  Kb4 {[%clk 0:00:02]} 60. b6 {[%clk 0:00:07]}  Ka5 {[%clk 0:00:02]} 61. b7 {[%clk 0:00:07]}  Bc7 {[%clk 0:00:03]} 62. Bf4 {[%clk 0:00:07]}  Kb6 {[%clk 0:00:02]} 63. b8=Q+ {[%clk 0:00:05]}  Bxb8 {[%clk 0:00:02]} 64. Bxb8 {[%clk 0:00:06]}  Kc5 {[%clk 0:00:03]} 65. Kf4 {[%clk 0:00:05]}  Kd5 {[%clk 0:00:04]} 66. Kg5 {[%clk 0:00:06]}  Ke6 {[%clk 0:00:05]} 67. Kxh5 {[%clk 0:00:06]}  Ke7 {[%clk 0:00:05]} 68. Bg6 {[%clk 0:00:05]}  Kf6 {[%clk 0:00:06]} 69. Bf4 {[%clk 0:00:05]}  Kg7 {[%clk 0:00:07]} 70. Kg5 {[%clk 0:00:05]}  Kf8 {[%clk 0:00:08]} 71. Kf6 {[%clk 0:00:05]}  Kg8 {[%clk 0:00:09]} 72. Bh6 {[%clk 0:00:04]}  Kh8 {[%clk 0:00:09]} 73. Bg7+ {[%clk 0:00:04]}  Kg8 {[%clk 0:00:10]} 74. Bh6 {[%clk 0:00:04]}  Kh8 {[%clk 0:00:10]} 75. h4 {[%clk 0:00:05]}  Kg8 {[%clk 0:00:11]} 76. Bf5 {[%clk 0:00:03]}  Kh8 {[%clk 0:00:12]} 77. Kg6 {[%clk 0:00:03]}  Kg8 {[%clk 0:00:13]} 78. Be6+ {[%clk 0:00:03]}  Kh8 {[%clk 0:00:14]} 79. Bg7# {[%clk 0:00:04]} 1-0


[Site "https://www.chess.com"]

[Event "Titled Tuesday Blitz February 15 Early 2022"]
[White "Zhu, Jiner"]
[Black "Bortnyk, Olexandr"]
[WhiteFideId "8608059"]
[BlackFideId "14120828"]
[WhiteElo "2281"]
[BlackElo "2723"]
[Result "0-1"]
[Round "01"]
[TimeControl "180+1"]
[Date "2022.02.15"]
[WhiteClock "0:00:04"]
[BlackClock "0:00:56"]

1. e4 {[%clk 0:03:00]}  Nf6 {[%clk 0:02:50]} 2. e5 {[%clk 0:03:00]}  Nd5 {[%clk 0:02:24]} 3. d4 {[%clk 0:02:58]}  d6 {[%clk 0:02:23]} 4. Nf3 {[%clk 0:02:58]}  dxe5 {[%clk 0:02:22]} 5. Nxe5 {[%clk 0:02:57]}  c6 {[%clk 0:02:22]} 6. Be2 {[%clk 0:02:49]}  Bf5 {[%clk 0:02:20]} 7. O-O {[%clk 0:02:47]}  Nd7 {[%clk 0:02:20]} 8. Nxd7 {[%clk 0:02:38]}  Qxd7 {[%clk 0:02:21]} 9. c4 {[%clk 0:02:37]}  Nb4 {[%clk 0:02:16]} 10. Na3 {[%clk 0:02:35]}  e6 {[%clk 0:02:15]} 11. Be3 {[%clk 0:02:33]}  Be7 {[%clk 0:02:16]} 12. Qd2 {[%clk 0:02:31]}  O-O {[%clk 0:02:15]} 13. Rad1 {[%clk 0:02:30]}  Rfd8 {[%clk 0:02:06]} 14. Bf3 {[%clk 0:02:25]}  h6 {[%clk 0:01:51]} 15. h3 {[%clk 0:02:20]}  b6 {[%clk 0:01:47]} 16. Qc3 {[%clk 0:01:50]}  Nxa2 {[%clk 0:01:45]} 17. Qb3 {[%clk 0:01:44]}  Nb4 {[%clk 0:01:44]} 18. Bf4 {[%clk 0:01:40]}  a5 {[%clk 0:01:43]} 19. g4 {[%clk 0:01:35]}  Bg6 {[%clk 0:01:42]} 20. Rfe1 {[%clk 0:01:32]}  Bd6 {[%clk 0:01:32]} 21. Bxd6 {[%clk 0:01:17]}  Qxd6 {[%clk 0:01:33]} 22. Bg2 {[%clk 0:01:17]}  Qf4 {[%clk 0:01:23]} 23. Qe3 {[%clk 0:01:16]}  Qxe3 {[%clk 0:01:23]} 24. fxe3 {[%clk 0:01:16]}  Ra7 {[%clk 0:01:24]} 25. Rd2 {[%clk 0:01:16]}  Rad7 {[%clk 0:01:20]} 26. Red1 {[%clk 0:01:15]}  e5 {[%clk 0:01:18]} 27. Kf1 {[%clk 0:00:55]}  Kf8 {[%clk 0:01:09]} 28. Ke1 {[%clk 0:00:50]}  f6 {[%clk 0:01:08]} 29. dxe5 {[%clk 0:00:28]}  Rxd2 {[%clk 0:01:06]} 30. Rxd2 {[%clk 0:00:29]}  Rxd2 {[%clk 0:01:06]} 31. Kxd2 {[%clk 0:00:30]}  fxe5 {[%clk 0:01:06]} 32. Kc3 {[%clk 0:00:28]}  Ke7 {[%clk 0:01:05]} 33. e4 {[%clk 0:00:19]}  Kd6 {[%clk 0:01:01]} 34. Nb1 {[%clk 0:00:18]}  Na6 {[%clk 0:00:57]} 35. Nd2 {[%clk 0:00:18]}  Nc5 {[%clk 0:00:58]} 36. b4 {[%clk 0:00:17]}  axb4+ {[%clk 0:00:58]} 37. Kxb4 {[%clk 0:00:17]}  Ne6 {[%clk 0:00:57]} 38. h4 {[%clk 0:00:16]}  Nd4 {[%clk 0:00:55]} 39. Kc3 {[%clk 0:00:15]}  Bf7 {[%clk 0:00:54]} 40. h5 {[%clk 0:00:15]}  Be6 {[%clk 0:00:54]} 41. Bh3 {[%clk 0:00:14]}  Ne2+ {[%clk 0:00:55]} 42. Kc2 {[%clk 0:00:04]}  Nf4 {[%clk 0:00:56]} 43. Bf1 {[%clk 0:00:04]}  Bxg4 {[%clk 0:00:56]} 44. Nb3 {[%clk 0:00:04]}  Bxh5 {[%clk 0:00:56]} 0-1


[Site "https://www.chess.com"]

[Event "Titled Tuesday Blitz February 15 Early 2022"]
[White "Abramov, Alexander"]
[Black "Shuvalova, Polina"]
[WhiteFideId "4174089"]
[BlackFideId "24171760"]
[WhiteElo "2142"]
[BlackElo "2355"]
[Result "0-1"]
[Round "02"]
[TimeControl "180+1"]
[Date "2022.02.15"]
[WhiteClock "0:00:01"]
[BlackClock "0:01:28"]

1. e4 {[%clk 0:02:55]}  c6 {[%clk 0:02:59]} 2. d4 {[%clk 0:02:52]}  d5 {[%clk 0:03:00]} 3. Nc3 {[%clk 0:02:52]}  dxe4 {[%clk 0:03:00]} 4. Nxe4 {[%clk 0:02:53]}  Nf6 {[%clk 0:03:00]} 5. Nxf6+ {[%clk 0:02:50]}  exf6 {[%clk 0:03:01]} 6. c3 {[%clk 0:02:50]}  Bd6 {[%clk 0:03:01]} 7. Bd3 {[%clk 0:02:51]}  O-O {[%clk 0:03:02]} 8. Qc2 {[%clk 0:02:51]}  Re8+ {[%clk 0:03:02]} 9. Ne2 {[%clk 0:02:52]}  h5 {[%clk 0:03:03]} 10. Be3 {[%clk 0:02:50]}  Nd7 {[%clk 0:03:02]} 11. O-O-O {[%clk 0:02:43]}  Nf8 {[%clk 0:03:02]} 12. Nf4 {[%clk 0:02:37]}  g6 {[%clk 0:02:53]} 13. Nxg6 {[%clk 0:02:36]}  fxg6 {[%clk 0:02:49]} 14. Bxg6 {[%clk 0:02:37]}  Bg4 {[%clk 0:02:34]} 15. Rde1 {[%clk 0:02:11]}  Re7 {[%clk 0:02:32]} 16. h3 {[%clk 0:01:58]}  Bd7 {[%clk 0:01:54]} 17. Bxh5 {[%clk 0:01:57]}  Qa5 {[%clk 0:01:51]} 18. Bg4 {[%clk 0:01:03]}  Qxa2 {[%clk 0:01:49]} 19. Bh6 {[%clk 0:01:03]}  Rae8 {[%clk 0:01:43]} 20. Rxe7 {[%clk 0:00:36]}  Rxe7 {[%clk 0:01:43]} 21. Bd1 {[%clk 0:00:01]}  Qa1+ {[%clk 0:01:29]} 22. Kd2 {[%clk 0:00:01]}  Qa5 {[%clk 0:01:30]} 23. Bxf8 {[%clk 0:00:01]}  Bf4+ {[%clk 0:01:28]} 0-1


[Site "https://www.chess.com"]

[Event "Titled Tuesday Blitz February 15 Early 2022"]
[White "Al Hosani, Omran"]
[Black "Indjic, Aleksandar"]
[WhiteFideId "9308733"]
[BlackFideId "911925"]
[WhiteElo "2246"]
[BlackElo "2616"]
[Result "0-1"]
[Round "02"]
[TimeControl "180+1"]
[Date "2022.02.15"]
[WhiteClock "0:00:10"]
[BlackClock "0:01:10"]

1. d4 {[%clk 0:03:00]}  Nf6 {[%clk 0:02:58]} 2. c4 {[%clk 0:03:00]}  c5 {[%clk 0:02:58]} 3. d5 {[%clk 0:03:00]}  e6 {[%clk 0:02:59]} 4. Nc3 {[%clk 0:03:00]}  exd5 {[%clk 0:02:59]} 5. cxd5 {[%clk 0:03:00]}  d6 {[%clk 0:02:59]} 6. e4 {[%clk 0:02:55]}  g6 {[%clk 0:02:59]} 7. Nf3 {[%clk 0:02:56]}  a6 {[%clk 0:02:58]} 8. a4 {[%clk 0:02:56]}  Bg4 {[%clk 0:02:56]} 9. Be2 {[%clk 0:02:56]}  Bxf3 {[%clk 0:02:56]} 10. Bxf3 {[%clk 0:02:56]}  Nbd7 {[%clk 0:02:56]} 11. O-O {[%clk 0:02:56]}  Bg7 {[%clk 0:02:56]} 12. Bf4 {[%clk 0:02:57]}  Qe7 {[%clk 0:02:56]} 13. Re1 {[%clk 0:02:54]}  O-O {[%clk 0:02:55]} 14. e5 {[%clk 0:02:39]}  dxe5 {[%clk 0:02:54]} 15. d6 {[%clk 0:02:38]}  Qe6 {[%clk 0:02:53]} 16. Bxb7 {[%clk 0:02:36]}  Ra7 {[%clk 0:02:54]} 17. Bf3 {[%clk 0:02:22]}  Rb8 {[%clk 0:02:53]} 18. Qd2 {[%clk 0:02:19]}  Rb4 {[%clk 0:02:39]} 19. Be3 {[%clk 0:02:15]}  e4 {[%clk 0:02:36]} 20. Be2 {[%clk 0:02:15]}  Rab7 {[%clk 0:02:12]} 21. Rab1 {[%clk 0:02:14]}  R7b6 {[%clk 0:02:11]} 22. Red1 {[%clk 0:02:14]}  Bf8 {[%clk 0:02:11]} 23. a5 {[%clk 0:02:11]}  Rxd6 {[%clk 0:02:10]} 24. Qc2 {[%clk 0:02:10]}  Rbd4 {[%clk 0:02:07]} 25. Na4 {[%clk 0:01:47]}  Qe5 {[%clk 0:02:02]} 26. Bxd4 {[%clk 0:01:35]}  cxd4 {[%clk 0:02:00]} 27. Qc7 {[%clk 0:01:33]}  d3 {[%clk 0:01:54]} 28. Bf1 {[%clk 0:01:27]}  Ng4 {[%clk 0:01:49]} 29. g3 {[%clk 0:01:26]}  Qd4 {[%clk 0:01:49]} 30. Rd2 {[%clk 0:01:19]}  Qxa4 {[%clk 0:01:48]} 31. b4 {[%clk 0:01:13]}  Nge5 {[%clk 0:01:43]} 32. Bg2 {[%clk 0:01:11]}  Rc6 {[%clk 0:01:38]} 33. Qa7 {[%clk 0:00:58]}  Rc2 {[%clk 0:01:36]} 34. Rdd1 {[%clk 0:00:56]}  Bxb4 {[%clk 0:01:25]} 35. Qd4 {[%clk 0:00:54]}  Rc4 {[%clk 0:01:20]} 36. Qb2 {[%clk 0:00:40]}  Bc5 {[%clk 0:01:17]} 37. Ra1 {[%clk 0:00:37]}  Qc2 {[%clk 0:01:16]} 38. Qb7 {[%clk 0:00:28]}  Qxf2+ {[%clk 0:01:14]} 39. Kh1 {[%clk 0:00:28]}  Ng4 {[%clk 0:01:13]} 40. h3 {[%clk 0:00:17]}  Qxg3 {[%clk 0:01:12]} 41. Qb8+ {[%clk 0:00:10]}  Nxb8 {[%clk 0:01:10]} 0-1


[Site "https://www.chess.com"]

[Event "Titled Tuesday Blitz February 15 Early 2022"]
[White "Al Mukhaini, Shima"]
[Black "Saim, Mohamed Ilias"]
[WhiteFideId "22005854"]
[BlackFideId "7900465"]
[WhiteElo "2402"]
[BlackElo "2006"]
[Result "1-0"]
[Round "02"]
[TimeControl "180+1"]
[Date "2022.02.15"]
[WhiteClock "0:01:16"]
[BlackClock "0:00:22"]

1. e4 {[%clk 0:02:58]}  c5 {[%clk 0:02:53]} 2. Nf3 {[%clk 0:02:56]}  a6 {[%clk 0:02:51]} 3. c3 {[%clk 0:02:53]}  e6 {[%clk 0:02:43]} 4. d4 {[%clk 0:02:51]}  d5 {[%clk 0:02:39]} 5. e5 {[%clk 0:02:49]}  Bd7 {[%clk 0:02:34]} 6. Bd3 {[%clk 0:02:48]}  Nc6 {[%clk 0:02:27]} 7. O-O {[%clk 0:02:47]}  h6 {[%clk 0:02:15]} 8. Be3 {[%clk 0:02:39]}  Qb6 {[%clk 0:01:53]} 9. Qb3 {[%clk 0:02:26]}  Qxb3 {[%clk 0:01:46]} 10. axb3 {[%clk 0:02:25]}  cxd4 {[%clk 0:01:41]} 11. Bxd4 {[%clk 0:02:00]}  Nxd4 {[%clk 0:01:31]} 12. Nxd4 {[%clk 0:01:57]}  Bc5 {[%clk 0:01:21]} 13. Nc2 {[%clk 0:01:46]}  Ne7 {[%clk 0:01:15]} 14. Kh1 {[%clk 0:01:45]}  f6 {[%clk 0:01:05]} 15. exf6 {[%clk 0:01:38]}  gxf6 {[%clk 0:01:04]} 16. b4 {[%clk 0:01:39]}  Bd6 {[%clk 0:00:56]} 17. Nd2 {[%clk 0:01:39]}  Kf7 {[%clk 0:00:50]} 18. f4 {[%clk 0:01:26]}  Rac8 {[%clk 0:00:34]} 19. g3 {[%clk 0:01:22]}  Kg7 {[%clk 0:00:27]} 20. Rae1 {[%clk 0:01:19]}  e5 {[%clk 0:00:22]} 21. fxe5 {[%clk 0:01:16]} 1-0


[Site "https://www.chess.com"]